bitfinex/quotes_ETHUSD_20230117
["timestamp","ask_amount","ask_price","bid_price","bid_amount"]
[1673988970367,12.9652019,1580.6,1580.0,30.69855]
[1673988970579,12.9652019,1580.6,1580.1,0.02032471]
[1673988970992,12.9652019,1580.6,1580.1,19.00597471]
[1673988970993,0.3117419,1580.6,1580.1,19.00597471]
[1673988971238,0.0157419,1580.6,1580.1,20.29197471]
[1673988971450,0.01148883,1580.6,1580.3,6.32783]
[1673988971664,0.01148883,1580.6,1580.3,6.34383]
[1673988972485,0.01148883,1580.6,1580.4,1.275]
[1673988972736,0.01148883,1580.6,1580.5,1.267]
[1673988972901,0.01148883,1580.6,1580.5,13.92122]
[1673988973257,0.01148883,1580.6,1580.5,13.93722]
[1673988973625,0.01148883,1580.6,1580.5,20.26433]
[1673988974053,0.01148883,1580.6,1580.5,7.61011]
[1673988974409,0.01148883,1580.6,1580.5,0.989]
[1673988974583,0.01148883,1580.6,1580.5,0.973]
[1673988975406,0.01148883,1580.6,1580.5,7.30011]
[1673988975735,0.01148883,1580.6,1580.5,13.64322]
[1673988977294,0.01148883,1580.6,1580.5,0.016]
[1673988977505,0.01148883,1580.6,1580.3,9.34353]
[1673988977765,6.33819883,1580.6,1580.3,3.016]
[1673988977986,6.40419883,1580.6,1580.3,3.0]
[1673988979257,12.73090883,1580.6,1580.2,12.72226]
[1673988979475,12.73090883,1580.6,1580.2,12.67226]
[1673988981028,0.07748883,1580.6,1580.3,1.00375951]
[1673988981239,0.01148883,1580.6,1580.4,6.32751]
[1673988981479,0.01148883,1580.6,1580.4,12.66825071]
[1673988981792,0.01148883,1580.6,1580.5,1.0]
[1673988981948,0.01148883,1580.6,1580.5,7.32711]
[1673988982160,0.01148883,1580.6,1580.5,8.62211]
[1673988982701,0.01148883,1580.6,1580.5,14.94922]
[1673988984897,0.01148883,1580.6,1580.5,13.94922]
[1673988986195,0.01148883,1580.6,1580.5,20.27633]
[1673988990579,0.01148883,1580.6,1580.5,24.54633]
[1673988990791,0.01148883,1580.6,1580.5,31.79707173]
[1673988991247,0.01148883,1580.6,1580.5,44.57547173]
[1673988991462,0.00877075,1580.6,1580.5,44.57547173]
[1673988992677,0.00877075,1580.6,1580.5,37.96147173]
[1673988993309,0.00877075,1580.6,1580.5,36.69147173]
[1673988993519,0.00877075,1580.6,1580.5,36.05473]
[1673989000193,0.00077075,1580.6,1580.5,48.81937312]
[1673989000396,0.00077075,1580.6,1580.5,45.32339673]
[1673989000616,0.00077075,1580.6,1580.5,48.82000047]
[1673989000950,0.00077075,1580.6,1580.5,45.98520242]
[1673989001119,0.00077075,1580.6,1580.5,45.32339673]
[1673989001325,1.07583052,1581.2,1580.5,50.47252469]
[1673989001594,1.07583052,1581.2,1581.1,1.279]
[1673989001904,1.07583052,1581.2,1581.1,23.25313]
[1673989002117,1.07583052,1581.2,1581.1,23.26913]
[1673989007053,1.07583052,1581.2,1581.1,15.66542]
[1673989008838,1.07583052,1581.2,1581.1,3.016]
[1673989009094,1.07583052,1581.2,1581.0,6.39091]
[1673989009306,1.07583052,1581.2,1581.0,6.34091]
[1673989011988,1.07583052,1581.2,1581.0,18.99113]
[1673989012442,1.07583052,1581.2,1581.0,20.27013]
[1673989012659,1.07583052,1581.2,1581.0,20.2738803]
[1673989014093,0.01307415,1581.4,1581.0,20.2738803]
[1673989015401,0.01307415,1581.4,1581.1,1.0]
[1673989015586,0.01307415,1581.4,1581.1,2.27]
[1673989015803,0.01307415,1581.4,1581.2,6.32431]
[1673989016041,0.01307415,1581.4,1581.2,6.34031]
[1673989017251,0.01307415,1581.4,1581.2,18.98893]
[1673989018088,0.01307415,1581.4,1581.2,20.25893]
[1673989020756,0.01307415,1581.4,1581.3,1.9731717]
[1673989020927,0.01307415,1581.4,1581.3,25.2239017]
[1673989021138,0.01307415,1581.4,1581.3,25.2399017]
[1673989022730,0.01307415,1581.4,1581.3,37.2370017]
[1673989023146,0.01307415,1581.4,1581.3,37.23414953]
[1673989023763,0.01307415,1581.4,1581.3,38.51314953]
[1673989027780,0.44887975,1581.4,1581.3,35.95514953]
[1673989028242,0.44887975,1581.4,1581.3,48.61419972]
[1673989029297,0.01337083,1581.7,1581.4,0.44799025]
[1673989029467,0.01337083,1581.7,1581.6,28.84084]
[1673989029686,0.01337083,1581.7,1581.6,31.85684]
[1673989029885,0.00821152,1582.1,1581.7,1.0]
[1673989030250,0.00821152,1582.1,1582.0,12.64222]
[1673989030481,0.00821152,1582.1,1582.0,12.65822]
[1673989030776,0.00821152,1582.1,1582.0,15.65822]
[1673989030954,0.6529511,1582.3,1582.0,15.65822]
[1673989030955,0.63753104,1582.3,1582.0,15.65822]
[1673989031362,1.01873731,1582.4,1582.0,16.92522]
[1673989031790,0.03762451,1582.4,1582.1,3.0]
[1673989032025,0.03762451,1582.4,1582.1,15.64114]
[1673989032235,0.03762451,1582.4,1582.1,15.65714]
[1673989032449,0.03762451,1582.4,1582.1,16.92714]
[1673989033245,0.03762451,1582.4,1582.1,29.29444]
[1673989033454,0.03762451,1582.4,1582.3,6.31991]
[1673989033848,0.03762451,1582.4,1582.3,0.989]
[1673989034150,0.03762451,1582.4,1582.3,0.935]
[1673989034293,0.96873731,1582.6,1582.3,0.935]
[1673989034503,8.25188884,1582.7,1582.3,7.25491]
[1673989034755,0.83464684,1582.6,1582.3,13.58082]
[1673989035392,2.40044855,1582.8,1582.4,0.00403393]
[1673989035393,1.93355884,1582.8,1582.4,0.00403393]
[1673989035615,2.42077343,1582.9,1582.5,12.63822]
[1673989035616,2.01988372,1582.9,1582.5,12.63822]
[1673989035762,0.83474769,1582.8,1582.5,12.64422]
[1673989035970,0.83474769,1582.8,1582.5,20.23333]
[1673989036180,0.08632488,1582.9,1582.6,3.0]
[1673989036431,0.08632488,1582.9,1582.7,25.56893]
[1673989036711,0.08632488,1582.9,1582.8,5.545]
[1673989036969,0.08632488,1582.9,1582.8,18.18682]
[1673989037152,0.08632488,1582.9,1582.8,24.80082]
[1673989037360,0.066,1583.6,1582.8,28.53082]
[1673989037659,1.86755884,1583.7,1583.1,1.279]
[1673989037841,0.83069677,1583.6,1583.2,12.63217]
[1673989037993,0.83069677,1583.6,1583.2,12.63817]
[1673989038350,0.83069677,1583.6,1583.3,9.31576]
[1673989038567,0.09443961,1583.8,1583.3,9.32176]
[1673989038731,0.8288812,1583.7,1583.3,9.32176]
[1673989038944,0.8288812,1583.7,1583.3,10.60076]
[1673989039179,0.02843961,1583.8,1583.3,16.91668]
[1673989039928,0.02843961,1583.8,1583.3,0.006]
[1673989039929,12.65633961,1583.8,1583.3,0.006]
[1673989040103,0.82887321,1583.7,1583.2,9.31602]
[1673989040315,0.82887321,1583.7,1583.2,9.32202]
[1673989040646,0.82887321,1583.7,1583.2,3.006]
[1673989040647,12.62864,1583.7,1583.2,3.006]
[1673989040820,12.69464,1583.7,1583.1,3.066]
[1673989041028,12.69464,1583.7,1583.1,9.31665]
[1673989041299,12.69464,1583.7,1583.1,9.32265]
[1673989041457,0.066,1583.7,1583.1,15.63937]
[1673989041830,6.31436,1583.7,1583.1,15.63937]
[1673989042148,12.69472,1583.7,1583.1,9.3226]
[1673989042674,0.00710524,1583.6,1583.1,3.006]
[1673989042871,6.31523,1583.5,1583.1,3.0]
[1673989043029,6.38123,1583.5,1583.1,3.0]
[1673989043243,6.38123,1583.5,1583.0,6.38284]
[1673989043244,0.00710524,1583.4,1583.0,0.066]
[1673989043474,0.00710524,1583.4,1582.9,12.1357]
[1673989043475,12.632,1583.3,1582.9,0.006]
[1673989043686,12.698,1583.3,1582.7,12.64235]
[1673989043877,12.698,1583.3,1582.7,6.32405]
[1673989044454,12.698,1583.3,1582.7,0.006]
[1673989044616,12.698,1583.3,1582.6,1.27]
[1673989044821,13.977,1583.3,1582.5,24.35494]
[1673989045033,13.977,1583.3,1582.5,24.29494]
[1673989045703,13.977,1583.3,1582.6,9.3186]
[1673989045921,13.977,1583.3,1582.6,9.3246]
[1673989046285,0.00710524,1583.2,1582.6,9.3246]
[1673989046499,12.63374,1583.1,1582.6,9.3246]
[1673989046711,12.69974,1583.1,1582.6,9.3246]
[1673989047917,12.69974,1583.1,1582.8,1.279]
[1673989047918,0.066,1583.1,1582.8,1.279]
[1673989048133,6.38197,1583.3,1582.8,13.91466]
[1673989048325,6.38197,1583.3,1582.8,20.23857]
[1673989048494,6.38197,1583.3,1582.9,3.0]
[1673989048495,0.066,1583.3,1582.9,3.0]
[1673989048706,14.1952,1583.6,1583.0,18.95109]
[1673989048992,14.1952,1583.6,1583.1,1.27]
[1673989049287,7.8802,1583.6,1583.2,12.63228]
[1673989049446,7.8802,1583.6,1583.2,12.63828]
[1673989049808,14.19494,1583.6,1583.2,12.63828]
[1673989050026,6.38074,1583.6,1583.2,12.63828]
[1673989050175,6.38074,1583.6,1583.2,0.006]
[1673989050384,19.0102,1583.6,1583.1,21.24451]
[1673989050651,19.0102,1583.6,1583.1,11.9281]
[1673989050962,1.68964435,1583.0,1582.9,3.0]
[1673989052879,1.68964435,1583.0,1582.9,9.31751]
[1673989053179,1.63964435,1583.0,1582.9,9.32351]
[1673989053765,1.70334435,1583.0,1582.9,9.32351]
[1673989056933,1.70334435,1583.0,1582.9,0.006]
[1673989057121,21.91367435,1583.0,1582.6,0.006]
[1673989057332,0.23,1582.9,1582.3,0.19080626]
[1673989057545,18.95469,1582.8,1582.3,0.19080626]
[1673989057861,19.02779524,1582.8,1582.3,0.19080626]
[1673989059465,19.02779524,1582.8,1582.3,6.51070626]
[1673989059805,19.02779524,1582.8,1582.3,6.51670626]
[1673989060021,12.70956524,1582.8,1582.3,12.83661626]
[1673989060600,19.02779524,1582.8,1582.3,0.19680626]
[1673989060805,19.02779524,1582.8,1582.3,0.19080626]
[1673989061015,20.30679524,1582.8,1582.3,0.19080626]
[1673989063224,12.70956524,1582.8,1582.3,6.51064626]
[1673989063434,12.70956524,1582.8,1582.3,19.15646626]
[1673989065692,12.70956524,1582.8,1582.4,1.0]
[1673989065904,12.70956524,1582.8,1582.3,19.21646626]
[1673989066062,0.066,1582.8,1582.5,20.22409]
[1673989066278,7.83650435,1583.0,1582.6,3.0]
[1673989066524,7.83650435,1583.0,1582.6,15.63693]
[1673989066707,7.83650435,1583.0,1582.6,15.64293]
[1673989068131,7.83650435,1583.0,1582.6,21.96164]
[1673989068756,1.51934435,1583.0,1582.6,21.96164]
[1673989068973,1.45334435,1583.0,1582.6,21.96164]
[1673989069336,1.45334435,1583.0,1582.7,1.0]
[1673989069546,1.45534435,1583.0,1582.8,6.31791]
[1673989069879,1.45334435,1583.0,1582.8,6.32391]
[1673989070070,1.45334435,1583.0,1582.9,2.279]
[1673989070281,1.45334435,1583.0,1582.9,21.23153]
[1673989070484,1.45334435,1583.0,1582.9,34.35153]
[1673989070753,1.45334435,1583.0,1582.9,34.58153]
[1673989071115,1.07138257,1583.4,1583.0,1.0]
[1673989071329,1.00538257,1583.4,1583.2,1.279]
[1673989071577,1.00538257,1583.4,1583.3,20.22676]
[1673989071891,1.00538257,1583.4,1583.3,16.91684]
[1673989072688,1.00538257,1583.4,1583.3,3.006]
[1673989072905,1.76975182,1583.4,1583.2,1.37055176]
[1673989073109,1.65309312,1583.4,1583.1,6.38271]
[1673989073375,1.65309312,1583.4,1583.1,6.32271]
[1673989074113,1.65309312,1583.4,1583.1,0.006]
[1673989074334,1.65309312,1583.4,1583.1,3.0]
[1673989074478,1.36218899,1583.3,1583.0,0.066]
[1673989074850,8.64879561,1583.3,1582.9,12.3958]
[1673989075063,14.31643717,1583.3,1582.9,12.3958]
[1673989075274,14.32354241,1583.3,1582.9,12.3958]
[1673989075501,1.36212181,1583.2,1582.9,12.3958]
[1673989075678,7.67852181,1583.2,1582.9,12.3958]
[1673989076007,7.03011055,1583.2,1582.9,12.3958]
[1673989076160,0.71371055,1583.2,1583.0,6.614]
[1673989076377,1.07138257,1583.4,1583.1,21.95016]
[1673989076693,1.00538257,1583.4,1583.1,21.95616]
[1673989077487,1.00538257,1583.4,1583.1,3.006]
[1673989077802,1.00538257,1583.4,1583.1,3.0]
[1673989078106,7.32093257,1583.4,1583.1,3.0]
[1673989078316,7.38693257,1583.4,1583.1,3.0]
[1673989079316,8.03464312,1583.4,1583.1,3.0]
[1673989080290,14.35019312,1583.4,1583.0,0.066]
[1673989080616,15.32075974,1583.4,1583.0,9.31706]
[1673989080802,1.36183211,1583.3,1583.0,0.006]
[1673989081010,1.36183211,1583.3,1582.9,12.3958]
[1673989081274,12.6328,1583.2,1582.9,12.3958]
[1673989081591,13.34651055,1583.2,1582.9,12.3958]
[1673989082112,13.35361579,1583.2,1582.9,0.006]
[1673989082426,13.35361579,1583.2,1582.7,25.33254]
[1673989083104,14.32418241,1583.2,1582.7,25.33254]
[1673989083471,1.36181566,1583.1,1582.7,25.33254]
[1673989083679,0.64771055,1583.1,1582.7,25.33254]
[1673989084006,13.67647186,1583.2,1582.7,25.33254]
[1673989084007,14.32418241,1583.2,1582.7,25.33254]
[1673989084181,6.31684,1583.1,1582.7,25.33254]
[1673989084387,0.066,1583.1,1582.9,12.6349]
[1673989084616,7.02986055,1583.3,1582.9,12.6409]
[1673989084810,12.69828,1583.3,1582.9,12.6409]
[1673989085231,13.34599055,1583.3,1582.9,12.6409]
[1673989085691,0.066,1583.3,1582.9,18.95841]
[1673989085847,15.32101974,1583.4,1582.9,18.95841]
[1673989086305,1.3619557,1583.3,1582.9,18.95841]
[1673989086636,0.64771055,1583.3,1582.9,18.95841]
[1673989086874,20.98917919,1583.4,1582.9,18.95841]
[1673989086875,9.00521974,1583.4,1582.9,18.95841]
[1673989087377,1.71909312,1583.4,1582.9,20.23341]
[1673989087529,1.65309312,1583.4,1582.9,20.23341]
[1673989087900,1.00538257,1583.4,1582.9,20.23341]
[1673989088210,1.00538257,1583.4,1583.0,3.0]
[1673989088597,1.00538257,1583.4,1583.1,18.94993]
[1673989088946,1.00538257,1583.4,1583.1,18.95593]
[1673989090518,1.00538257,1583.4,1583.3,6.31592]
[1673989090680,1.00538257,1583.4,1583.3,6.32192]
[1673989090886,1.00538257,1583.4,1583.3,18.95376]
[1673989091677,1.00538257,1583.4,1583.3,6.32192]
[1673989091915,1.00538257,1583.4,1583.3,0.006]
[1673989092202,7.32090257,1583.4,1583.1,11.6243]
[1673989092415,7.38690257,1583.4,1583.1,11.6243]
[1673989092726,8.03461312,1583.4,1583.1,11.6243]
[1673989093172,8.03461312,1583.4,1583.1,11.62117534]
[1673989093312,14.35013312,1583.4,1583.1,11.62117534]
[1673989093517,20.66565312,1583.4,1583.1,11.62117534]
[1673989093796,8.35746919,1583.4,1583.1,6.3207]
[1673989093949,8.35746919,1583.4,1583.1,18.95614]
[1673989093950,1.07138257,1583.4,1583.1,18.95614]
[1673989094162,1.00538257,1583.4,1583.1,18.95614]
[1673989095614,1.00538257,1583.4,1583.1,20.22614]
[1673989095830,1.00538257,1583.4,1583.2,1.275]
[1673989096182,1.00538257,1583.4,1583.3,26.54168]
[1673989096371,1.00538257,1583.4,1583.3,29.54768]
[1673989099828,1.00538257,1583.4,1583.3,29.61088]
[1673989103605,1.00538257,1583.4,1583.3,36.22488]
[1673989103809,1.00538257,1583.4,1583.3,36.45488]
[1673989104081,1.00538257,1583.4,1583.3,38.37062173]
[1673989106248,1.00538257,1583.4,1583.3,41.86848194]
[1673989106614,1.00538257,1583.4,1583.3,44.68654173]
[1673989108658,1.00538257,1583.4,1583.3,38.37062173]
[1673989108869,1.00538257,1583.4,1583.3,30.24862173]
[1673989110019,1.00538257,1583.4,1583.3,29.61188]
[1673989110487,1.00538257,1583.4,1583.3,36.22588]
[1673989110698,1.00538257,1583.4,1583.3,37.09262173]
[1673989110922,1.00538257,1583.4,1583.3,38.36362173]
[1673989111491,1.00538257,1583.4,1583.3,41.77231625]
[1673989111917,1.00538257,1583.4,1583.3,41.13557452]
[1673989112158,2.57e-06,1583.4,1583.3,41.77231625]
[1673989112647,2.57e-06,1583.4,1583.3,38.36362173]
[1673989112852,2.57e-06,1583.4,1583.3,30.24062173]
[1673989113113,2.57e-06,1583.4,1583.3,36.85462173]
[1673989114011,2.57e-06,1583.4,1583.3,29.60388]
[1673989116548,2.57e-06,1583.4,1583.3,0.0692]
[1673989116756,2.57e-06,1583.4,1583.3,0.0632]
[1673989116987,6.31515,1583.5,1583.3,0.0632]
[1673989116988,6.38115,1583.5,1583.3,0.0632]
[1673989117374,0.066,1583.5,1583.3,0.0632]
[1673989117589,0.07310524,1583.6,1583.3,6.37908]
[1673989117856,0.00710524,1583.6,1583.3,0.0692]
[1673989118017,6.32183524,1583.6,1583.3,0.0632]
[1673989118219,12.70256524,1583.6,1583.3,0.0632]
[1673989118429,13.97256524,1583.6,1583.3,0.0632]
[1673989118697,20.28729524,1583.6,1583.3,0.0632]
[1673989119272,0.07310524,1583.6,1583.3,0.0632]
[1673989119495,0.00710524,1583.6,1583.3,6.37899]
[1673989119730,0.00710524,1583.6,1583.3,6.38499]
[1673989121702,0.00710524,1583.6,1583.3,12.70091]
[1673989121913,0.09443961,1583.8,1583.3,12.70091]
[1673989122156,0.09443961,1583.8,1583.3,19.01683]
[1673989122157,0.02843961,1583.8,1583.3,19.01683]
[1673989123332,0.02843961,1583.8,1583.4,1.0]
[1673989123505,0.02843961,1583.8,1583.5,18.94512]
[1673989123714,0.02843961,1583.8,1583.5,18.95112]
[1673989126725,0.02843961,1583.8,1583.5,0.006]
[1673989126873,13.30401016,1583.8,1583.5,0.0632]
[1673989127077,13.37001016,1583.8,1583.5,0.0632]
[1673989128925,13.37001016,1583.8,1583.5,6.37832]
[1673989129095,13.37001016,1583.8,1583.5,6.38432]
[1673989129519,7.05608016,1583.8,1583.5,6.38432]
[1673989130073,0.74215016,1583.8,1583.5,12.69744]
[1673989130231,0.67615016,1583.8,1583.5,12.69944]
[1673989130652,0.67615016,1583.8,1583.5,19.01456]
[1673989131079,0.67615016,1583.8,1583.5,12.69944]
[1673989131288,6.99015016,1583.8,1583.5,6.38432]
[1673989131535,8.02671678,1583.8,1583.5,6.38432]
[1673989131741,0.74215016,1583.8,1583.5,12.69944]
[1673989131962,0.67615016,1583.8,1583.5,12.69944]
[1673989132165,6.99010016,1583.8,1583.5,6.38432]
[1673989132495,0.74215016,1583.8,1583.5,12.69944]
[1673989132650,0.74215016,1583.8,1583.5,19.01456]
[1673989132651,0.02843961,1583.8,1583.5,19.01456]
[1673989133396,0.02843961,1583.8,1583.5,19.01125746]
[1673989133631,0.73272577,1584.1,1583.7,18.94296]
[1673989133805,0.66672577,1584.1,1583.7,18.94896]
[1673989134819,0.66672577,1584.1,1583.7,20.21596]
[1673989135335,0.01901522,1584.1,1583.9,2.279]
[1673989135641,0.01901522,1584.1,1584.0,6.31313]
[1673989135910,0.01901522,1584.1,1584.0,9.31913]
[1673989136489,0.01901522,1584.1,1584.0,15.63226]
[1673989136819,0.01901522,1584.1,1584.0,15.86226]
[1673989137344,0.01901522,1584.1,1584.0,15.63226]
[1673989139927,0.01901522,1584.1,1584.0,15.63026]
[1673989140180,0.01901522,1584.1,1584.0,15.63226]
[1673989140777,0.01901522,1584.1,1584.0,21.94539]
[1673989141907,0.01901522,1584.1,1584.0,22.17539]
[1673989145221,0.01901522,1584.1,1584.0,23.45439]
[1673989145372,0.01901522,1584.1,1584.0,24.09113173]
[1673989146003,0.01901522,1584.1,1584.0,27.5908253]
[1673989146213,2.03287414,1584.4,1584.1,1.0]
[1673989146464,2.03287414,1584.4,1584.3,2.558]
[1673989146653,2.03287414,1584.4,1584.3,24.49379]
[1673989146845,2.03287414,1584.4,1584.3,25.36653173]
[1673989147070,0.08231662,1584.6,1584.4,2.032]
[1673989147408,0.08231662,1584.6,1584.5,28.71052]
[1673989147597,0.08231662,1584.6,1584.5,30.44652]
[1673989147814,0.08231662,1584.6,1584.5,23.90539]
[1673989149533,0.08231662,1584.6,1584.5,31.79839]
[1673989149685,0.08231662,1584.6,1584.5,35.52655294]
[1673989150058,0.08231662,1584.6,1584.5,33.94413173]
[1673989150684,0.95114105,1584.7,1584.5,37.4413742]
[1673989150685,0.00014105,1584.7,1584.5,37.4413742]
[1673989150903,0.00014105,1584.7,1584.6,28.22285586]
[1673989151148,0.00014105,1584.7,1584.6,43.66442]
[1673989151459,0.00014105,1584.7,1584.6,44.30116173]
[1673989151614,0.00014105,1584.7,1584.6,44.31116173]
[1673989152357,0.91518483,1585.5,1585.2,6.614]
[1673989152579,0.91518483,1585.5,1585.3,23.43285]
[1673989152787,0.91518483,1585.5,1585.3,23.20885]
[1673989153095,0.86518483,1585.5,1585.3,29.5168]
[1673989153320,0.86518483,1585.5,1585.3,9.31395]
[1673989153509,0.86518483,1585.5,1585.3,6.31195]
[1673989153742,0.86518483,1585.5,1585.3,6.31395]
[1673989154161,0.47436051,1585.4,1585.3,6.31395]
[1673989154347,0.47436051,1585.4,1585.3,23.5029]
[1673989154814,0.47436051,1585.4,1585.3,23.7329]
[1673989155925,0.47436051,1585.4,1585.3,23.73692655]
[1673989156460,1.0751162,1585.8,1585.5,6.614]
[1673989156675,1.0751162,1585.8,1585.7,20.18608]
[1673989156925,1.0751162,1585.8,1585.7,20.42208]
[1673989157499,1.0751162,1585.8,1585.7,30.03608]
[1673989158018,1.0751162,1585.8,1585.7,23.42208]
[1673989158291,1.0751162,1585.8,1585.7,23.19208]
[1673989158510,1.0751162,1585.8,1585.7,21.92508]
[1673989159074,1.0751162,1585.8,1585.7,0.006]
[1673989159315,1.0751162,1585.8,1585.6,0.006]
[1673989159552,1.0751162,1585.8,1585.5,6.3129]
[1673989160173,1.0751162,1585.8,1585.5,12.62005]
[1673989160384,1.0751162,1585.8,1585.5,20.50105]
[1673989160552,1.0751162,1585.8,1585.7,1.275]
[1673989160765,1.0751162,1585.8,1585.6,3.0]
[1673989161035,1.0751162,1585.8,1585.7,12.61272]
[1673989161176,1.0751162,1585.8,1585.7,12.61872]
[1673989162295,1.0751162,1585.8,1585.7,16.89772]
[1673989162677,1.0751162,1585.8,1585.7,15.61872]
[1673989163804,1.0751162,1585.8,1585.7,15.84872]
[1673989164717,1.0751162,1585.8,1585.7,22.15508]
[1673989165065,1.0751162,1585.8,1585.7,28.76908]
[1673989165317,0.89212527,1586.1,1585.7,28.76908]
[1673989165318,0.89212527,1586.1,1585.9,6.614]
[1673989165486,0.89212527,1586.1,1586.0,24.39751]
[1673989165700,0.89212527,1586.1,1586.0,24.40351]
[1673989166345,0.89212527,1586.1,1586.0,24.40151]
[1673989166554,0.89212527,1586.1,1586.0,24.40351]
[1673989167728,0.89212527,1586.1,1586.0,24.17351]
[1673989167908,0.89212527,1586.1,1586.0,22.89451]
[1673989168794,0.89212527,1586.1,1586.0,22.95440746]
[1673989169428,0.89212527,1586.1,1586.0,21.98140746]
[1673989169580,0.89212527,1586.1,1586.0,0.06589746]
[1673989169794,0.89212527,1586.1,1586.0,0.05989746]
[1673989170254,0.89212527,1586.1,1586.0,6.36506746]
[1673989170583,0.89212527,1586.1,1586.0,18.98140746]
[1673989170745,0.89212527,1586.1,1586.0,12.67623746]
[1673989171411,0.89212527,1586.1,1586.0,0.06589746]
[1673989171743,0.89212527,1586.1,1586.0,0.05989746]
[1673989171951,0.0004128,1585.9,1585.8,6.36589]
[1673989172271,0.9934128,1585.9,1585.8,0.006]
[1673989172490,0.9934128,1585.9,1585.6,25.06464]
[1673989172628,0.9934128,1585.9,1585.7,6.30635]
[1673989172836,0.0004128,1585.9,1585.7,18.92507]
[1673989173486,0.0004128,1585.9,1585.8,3.0]
[1673989173914,0.0004128,1585.9,1585.8,21.91788]
[1673989174159,0.0004128,1585.9,1585.8,21.92388]
[1673989175430,0.0004128,1585.9,1585.8,23.20288]
[1673989175738,0.0004128,1585.9,1585.8,31.32588]
[1673989176326,0.0004128,1585.9,1585.8,35.45737878]
[1673989176581,0.0004128,1585.9,1585.8,35.45645397]
[1673989176813,0.0004128,1585.9,1585.8,31.96262173]
[1673989177945,0.0004128,1585.9,1585.8,41.19786526]
[1673989178168,0.89200079,1586.3,1586.0,6.614]
[1673989178473,0.12227863,1586.6,1586.2,6.614]
[1673989178701,0.12227863,1586.6,1586.4,6.614]
[1673989178910,0.12227863,1586.6,1586.5,25.52354]
[1673989179218,0.12227863,1586.6,1586.5,30.02954]
[1673989180115,8.63e-06,1586.6,1586.5,31.30854]
[1673989180333,1.14525507,1587.1,1586.5,34.7996449]
[1673989180700,1.14525507,1587.1,1586.8,33.09096]
[1673989180849,1.14525507,1587.1,1586.8,33.32696]
[1673989181059,1.14525507,1587.1,1586.8,36.32696]
[1673989181287,1.14525507,1587.1,1586.8,22.14197]
[1673989181537,1.14525507,1587.1,1586.8,21.91197]
[1673989182124,0.11227863,1586.9,1586.8,21.91197]
[1673989182370,0.11227863,1586.9,1586.8,21.90997]
[1673989182579,0.11227863,1586.9,1586.8,21.91197]
[1673989183228,1.10527863,1586.9,1586.8,0.006]
[1673989183446,1.10527863,1586.9,1586.7,6.30235]
[1673989183591,1.10527863,1586.9,1586.7,6.30835]
[1673989183806,1.16957863,1586.9,1586.7,6.30835]
[1673989184260,1.16957863,1586.9,1586.7,0.006]
[1673989184439,1.16957863,1586.9,1586.6,0.006]
[1673989184646,1.0,1586.8,1586.5,6.30918]
[1673989184953,1.0,1586.8,1586.5,0.006]
[1673989185069,1.0,1586.8,1586.4,0.006]
[1673989185288,1.0,1586.8,1586.3,6.30985]
[1673989185289,1.0070836,1586.8,1586.3,6.30985]
[1673989185501,7.31623884,1586.8,1586.3,6.30985]
[1673989185751,7.38223884,1586.8,1586.3,0.006]
[1673989185961,1.279,1586.5,1586.1,0.006]
[1673989186146,1.279,1586.5,1586.0,0.006]
[1673989186147,7.58241,1586.5,1586.0,0.006]
[1673989186360,13.95182,1586.5,1585.9,0.006]
[1673989186697,0.00710524,1586.4,1585.9,6.30554]
[1673989186914,0.00710524,1586.4,1585.9,6.31154]
[1673989187124,0.066,1586.5,1585.9,13.8951]
[1673989187276,0.0070836,1586.4,1586.0,1.0]
[1673989187485,0.0070836,1586.4,1586.2,12.60866]
[1673989187730,0.0070836,1586.4,1586.3,1.279]
[1673989187955,0.0070836,1586.4,1586.3,20.50094]
[1673989188149,0.0070836,1586.4,1586.3,24.79554]
[1673989188328,0.17657863,1586.9,1586.5,6.614]
[1673989188533,0.17657863,1586.9,1586.7,6.614]
[1673989188862,0.17657863,1586.9,1586.8,18.90597]
[1673989189118,0.17657863,1586.9,1586.8,21.91197]
[1673989189644,0.17657863,1586.9,1586.8,23.18697]
[1673989190593,0.17657863,1586.9,1586.8,18.91197]
[1673989190746,0.17657863,1586.9,1586.8,0.006]
[1673989190963,0.17657863,1586.9,1586.6,6.30853]
[1673989191283,0.17657863,1586.9,1586.7,6.30211]
[1673989191505,0.17657863,1586.9,1586.7,6.30811]
[1673989191691,0.17657863,1586.9,1586.7,0.006]
[1673989192058,0.17657863,1586.9,1586.6,0.006]
[1673989192272,0.17657863,1586.9,1586.5,6.30894]
[1673989192845,6.47835863,1586.9,1586.5,0.006]
[1673989193089,6.47835863,1586.9,1586.3,18.23793]
[1673989193090,1.0,1586.8,1586.3,18.23793]
[1673989193304,1.0,1586.8,1586.3,0.0156]
[1673989193305,12.60406,1586.8,1586.3,0.0156]
[1673989193478,0.00710524,1586.7,1586.3,0.0096]
[1673989195388,0.00710524,1586.7,1586.3,12.61752]
[1673989195620,10.12733726,1586.9,1586.4,1.279]
[1673989195621,0.24257863,1586.9,1586.4,1.279]
[1673989195947,0.17657863,1586.9,1586.5,18.90894]
[1673989196099,0.17657863,1586.9,1586.5,6.30898]
[1673989196308,0.17657863,1586.9,1586.5,0.006]
[1673989196309,0.88884552,1586.8,1586.5,0.006]
[1673989196518,0.88884552,1586.8,1586.4,6.36344]
[1673989196519,0.88884552,1586.8,1586.4,6.30944]
[1673989196725,0.88884552,1586.8,1586.4,12.61302]
[1673989196994,0.88884552,1586.8,1586.4,13.88002]
[1673989197183,0.17657863,1586.9,1586.6,18.90834]
[1673989197520,0.17657863,1586.9,1586.6,18.91434]
[1673989198822,0.17657863,1586.9,1586.8,12.60398]
[1673989199097,0.17657863,1586.9,1586.8,13.88898]
[1673989200167,0.17657863,1586.9,1586.8,25.01198]
[1673989200304,1.1411162,1587.4,1586.9,0.176]
[1673989200676,1.0751162,1587.4,1587.3,20.179]
[1673989200902,0.14521393,1587.6,1587.3,29.799]
[1673989201039,0.12964294,1587.7,1587.5,1.279]
[1673989201249,0.12964294,1587.7,1587.6,1.505]
[1673989201507,0.57791,1588.1,1587.6,21.45281]
[1673989201720,0.57791,1588.1,1587.8,18.89382]